fUST/lending_fUST_20240804
["ID","MTS","AMOUNT","RATE_DAILY","PERIOD"]
[334089730,1722757841493,-500.0,0.00015399,2]
[334089733,1722757841505,-500.0,0.00015399,2]
[334089735,1722757841515,-500.0,0.00015399,2]
[334089737,1722757841527,-1880.67694903,0.00015399,2]
[334089739,1722757841539,-500.0,0.00015399,2]
[334089741,1722757841550,-500.0,0.00015399,2]
[334089744,1722757841561,-500.0,0.00015399,2]
[334089746,1722757841573,-527.67,0.00015399,2]
[334089748,1722757841587,-500.0,0.00015399,2]
[334089750,1722757841597,-500.0,0.00015399,2]
[334089752,1722757841607,-575.76,0.00015399,2]
[334089754,1722757841616,-500.0,0.00015399,2]
[334089757,1722757841627,-500.0,0.00015399,2]
[334089759,1722757841637,-500.0,0.00015399,2]
[334089761,1722757841647,-500.0,0.00015399,2]
[334089763,1722757841659,-500.0,0.00015399,2]
[334089765,1722757841669,-500.0,0.00015399,2]
[334089767,1722757841680,-582.72615807,0.00015399,2]
[334089769,1722757841690,-212.20906453,0.00015417,2]
[334089772,1722757841703,-155.67783595,0.00015417,2]
[334089774,1722757841712,-500.0,0.00015547,2]
[334089775,1722757841722,-500.0,0.00015547,2]
[334089778,1722757841732,-500.0,0.00015547,2]
[334089780,1722757841743,-500.0,0.00015547,2]
[334089782,1722757841753,-1236.35,0.00015547,2]
[334089784,1722757841763,-1621.88,0.00015547,2]
[334089786,1722757841775,-500.0,0.00015547,2]
[334089788,1722757841786,-713.35,0.00015547,2]
[334089790,1722757841796,-500.0,0.00015547,2]
[334089793,1722757841806,-500.0,0.00015547,2]
[334089795,1722757841815,-500.0,0.00015547,2]
[334089797,1722757841826,-3142.80398217,0.00015583,2]
[334089799,1722757841835,-500.0,0.00015599,2]
[334089801,1722757841845,-300.54956913,0.00015599,2]
[334089803,1722757841855,-500.0,0.00015599,2]
[334089805,1722757841866,-500.0,0.00015599,2]
[334089807,1722757841877,-500.0,0.00015599,2]
[334089809,1722757841887,-500.0,0.00015599,2]
[334089811,1722757841899,-500.0,0.00015673,2]
[334089813,1722757841908,-500.0,0.00015673,2]
[334089815,1722757841917,-500.0,0.00015673,2]
[334089817,1722757841927,-512.19,0.00015673,2]
[334089819,1722757841936,-500.0,0.00015673,2]
[334089821,1722757841945,-500.0,0.00015673,2]
[334089823,1722757841954,-500.0,0.00015673,2]
[334089825,1722757841964,-527.67,0.00015673,2]
[334089827,1722757841976,-575.76,0.00015673,2]
[334089830,1722757841987,-500.0,0.00015673,2]
[334089832,1722757841998,-500.0,0.00015673,2]
[334089834,1722757842009,-500.0,0.00015673,2]
[334089836,1722757842018,-151.0,0.00015674,2]
[334089838,1722757842027,-9545.52139396,0.00015674,2]
[334089844,1722757842081,-500.0,0.00014999,2]
[334089847,1722757842091,-363.24773707,0.00015674,2]
[334089849,1722757842101,-9908.76913103,0.00015679,2]
[334089851,1722757842110,-500.0,0.00015682,2]
[334089853,1722757842119,-500.0,0.00015683,2]
[334089855,1722757842129,-1205.4,0.00015683,2]
[334089857,1722757842138,-500.0,0.00015683,2]
[334089859,1722757842147,-296.066174,0.00015683,2]
[334089861,1722757842156,-500.0,0.00015683,2]
[334089863,1722757842166,-575.76,0.00015683,2]
[334089865,1722757842175,-575.76,0.00015683,2]
[334089867,1722757842184,-575.76,0.00015683,2]
[334089869,1722757842194,-56887.98070344,0.00015684,2]
[334089871,1722757842205,-2238.63996379,0.00015684,2]
[334089873,1722757842216,-42115.95130831,0.00015684,2]
[334089875,1722757842226,-157.61398342,0.00015689,2]
[334089877,1722757842235,-500.0,0.00015689,2]
[334089879,1722757842246,-500.0,0.00015689,2]
[334089881,1722757842259,-500.0,0.00015689,2]
[334089884,1722757842269,-500.0,0.00015689,2]
[334089886,1722757842280,-581.30874109,0.00015689,2]
[334089888,1722757842291,-500.0,0.00015689,2]
[334089890,1722757842301,-569.07354407,0.00015689,2]
[334089892,1722757842311,-309.90414721,0.00015689,2]
[334089894,1722757842320,-500.0,0.00015689,2]
[334089896,1722757842330,-500.0,0.00015689,2]
[334089898,1722757842339,-503.81854357,0.00015689,2]
[334089900,1722757842349,-500.0,0.00015689,2]
[334089902,1722757842358,-500.0,0.00015689,2]
[334089904,1722757842367,-500.0,0.00015689,2]
[334089906,1722757842376,-500.0,0.00015689,2]
[334089908,1722757842385,-500.0,0.00015689,2]
[334089910,1722757842394,-160.13921271,0.00015689,2]
[334089912,1722757842403,-500.0,0.00015689,2]
[334089914,1722757842413,-500.0,0.00015689,2]
[334089916,1722757842422,-500.0,0.00015689,2]
[334089918,1722757842431,-500.0,0.00015689,2]
[334089920,1722757842440,-500.0,0.00015689,2]
[334089922,1722757842450,-425.84535488,0.00015689,2]
[334089924,1722757842459,-294.26796484,0.00015689,2]
[334089976,1722757843657,-500.0,0.00015682,2]
[334089978,1722757843666,-205.73203516,0.00015689,2]
[334089980,1722757843675,-451.27253128,0.00015689,2]
[334089983,1722757843686,-500.0,0.00015689,2]
[334089985,1722757843695,-500.0,0.00015689,2]
[334089987,1722757843705,-500.0,0.00015689,2]
[334089989,1722757843715,-545.42869578,0.00015689,2]
[334089991,1722757843724,-41.82473764,0.00015689,2]
[334090298,1722757846771,-458.17526236,0.00015689,2]
[334090300,1722757846780,-500.0,0.00015689,2]
[334090302,1722757846790,-500.0,0.00015689,2]
[334090304,1722757846799,-500.0,0.00015689,2]
[334090306,1722757846808,-507.30461893,0.00015689,2]
[334090308,1722757846818,-500.0,0.00015689,2]
[334090310,1722757846828,-500.0,0.00015689,2]
[334090312,1722757846838,-504.79246944,0.00015689,2]
[334090314,1722757846848,-500.0,0.00015689,2]
[334090316,1722757846858,-500.0,0.00015689,2]
[334090318,1722757846868,-500.0,0.00015689,2]
[334090320,1722757846878,-500.29701448,0.00015689,2]
[334090322,1722757846887,-500.0,0.00015689,2]
[334090333,1722757846994,-500.0,0.00015689,2]
[334090335,1722757847004,-500.0,0.00015689,2]
[334090337,1722757847014,-500.40205932,0.00015689,2]
[334090339,1722757847023,-500.0,0.00015689,2]
[334090341,1722757847033,-500.0,0.00015689,2]
[334090343,1722757847042,-529.8076844,0.00015689,2]
[334090345,1722757847054,-500.0,0.00015689,2]
[334090347,1722757847063,-500.0,0.00015689,2]
[334090349,1722757847072,-265.789588,0.00015689,2]
[334090351,1722757847081,-500.0,0.00015689,2]
[334090353,1722757847091,-550.69585905,0.00015689,2]
[334090355,1722757847100,-137.95910533,0.00015689,2]
[334090444,1722758100416,533.92328189,9.999e-05,2]
[334090448,1722758199321,538.47396219,9.999e-05,2]
[334090450,1722758432473,200.0,0.00026141,120]
[334090452,1722758731106,-1330.05421038,0.00013984,2]
[334090455,1722758828092,-168.0,0.00013983,2]
[334090456,1722758828113,-1084.49570985,0.00013984,2]
[334090457,1722758831192,-808.72307767,0.00013984,2]
[334090458,1722758831213,-652.67341823,0.00013984,2]
[334090459,1722758833104,-1228.0035308,0.00013984,2]
[334090460,1722758833127,-369.44892483,0.00013984,2]
[334090487,1722759032737,-7216.30321092,0.000139,2]
[334090488,1722759032787,-305.84891193,0.000139,2]
[334090490,1722759032799,-1089.3,0.000139,2]
[334090507,1722759038680,-655.43866893,0.000139,2]
[334090508,1722759038843,-481.72337672,0.000139,2]
[334090511,1722759038852,-439.86128365,0.00013984,2]
[334090513,1722759038864,-1440.81566538,0.00013984,2]
[334090515,1722759038873,-331.824837,0.00014036,2]
[334090517,1722759038882,-187.5000109,0.00014135,2]
[334090519,1722759038891,-671.269702,0.00014247,2]
[334090521,1722759038901,-154.71377951,0.0001469,2]
[334090523,1722759038915,-500.0,0.00014999,2]
[334090525,1722759038925,-502.17344159,0.00014999,2]
[334090527,1722759038934,-336.13935107,0.00014999,2]
[334090529,1722759038943,-500.0,0.00014999,2]
[334090531,1722759038955,-500.0,0.00014999,2]
[334090533,1722759038964,-500.0,0.00014999,2]
[334090535,1722759038974,-500.18135724,0.00014999,2]
[334090537,1722759038984,-500.0,0.00014999,2]
[334090539,1722759038994,-531.91919532,0.00014999,2]
[334090541,1722759039004,-501.25724494,0.00014999,2]
[334090542,1722759039014,-503.09878364,0.00014999,2]
[334090544,1722759039023,-500.0,0.00014999,2]
[334090546,1722759039033,-532.94559402,0.00014999,2]
[334090548,1722759039042,-500.0,0.00014999,2]
[334090550,1722759039052,-500.0,0.00014999,2]
[334090552,1722759039062,-538.95614351,0.00014999,2]
[334090554,1722759039071,-500.0,0.00014999,2]
[334090556,1722759039081,-500.0,0.00014999,2]
[334090558,1722759039090,-500.0,0.00014999,2]
[334090560,1722759039099,-235.34138281,0.00014999,2]
[334090562,1722759039109,-502.42193957,0.00014999,2]
[334090564,1722759039118,-502.96123909,0.00014999,2]
[334090566,1722759039127,-521.01597852,0.00014999,2]
[334090568,1722759039141,-200.30963606,0.00014999,2]
[334090570,1722759039150,-492.40339763,0.00015,2]
[334090572,1722759039159,-3500.0,0.00015,2]
[334090574,1722759039168,-1108.76834352,0.00015,2]
[334090576,1722759039178,-152.97962424,0.00015273,2]
[334090578,1722759039187,-500.0,0.00015273,2]
[334090580,1722759039196,-3890.03066127,0.00015411,2]
[334090582,1722759039205,-500.0,0.00015497,2]
[334090584,1722759039215,-500.0,0.00015497,2]
[334090585,1722759039224,-500.0,0.00015497,2]
[334090587,1722759039234,-500.0,0.00015497,2]
[334090589,1722759039243,-500.0,0.00015497,2]
[334090591,1722759039253,-500.0,0.00015497,2]
[334090594,1722759039264,-500.0,0.00015497,2]
[334090596,1722759039274,-500.0,0.00015497,2]
[334090597,1722759039284,-500.0,0.00015497,2]
[334090598,1722759039294,-500.0,0.00015497,2]
[334090599,1722759039304,-500.0,0.00015497,2]
[334090600,1722759039313,-500.0,0.00015497,2]
[334090601,1722759039323,-500.0,0.00015497,2]
[334090602,1722759039332,-500.0,0.00015497,2]
[334090603,1722759039342,-500.0,0.00015497,2]
[334090604,1722759039351,-500.0,0.00015497,2]
[334090605,1722759039362,-500.0,0.00015497,2]
[334090606,1722759039373,-500.0,0.00015497,2]
[334090607,1722759039383,-500.0,0.00015497,2]
[334090608,1722759039392,-500.0,0.00015497,2]
[334090609,1722759039401,-500.0,0.00015497,2]
[334090611,1722759039410,-500.0,0.00015497,2]
[334090613,1722759039419,-500.0,0.00015497,2]
[334090615,1722759039429,-500.0,0.00015497,2]
[334090617,1722759039440,-500.0,0.00015497,2]
[334090619,1722759039451,-500.0,0.00015497,2]
[334090621,1722759039460,-500.0,0.00015497,2]
[334090623,1722759039469,-500.0,0.00015497,2]
[334090625,1722759039478,-500.0,0.00015497,2]
[334090627,1722759039487,-562.3501674,0.00015497,2]
[334090629,1722759039497,-500.0,0.00015497,2]
[334090631,1722759039506,-500.0,0.00015497,2]
[334090633,1722759039517,-500.0,0.00015497,2]
[334090635,1722759039526,-500.0,0.00015497,2]
[334090637,1722759039535,-500.0,0.00015497,2]
[334090639,1722759039544,-500.0,0.00015497,2]
[334090641,1722759039554,-500.0,0.00015497,2]
[334090643,1722759039565,-728.50492769,0.00015498,2]
[334090646,1722759039576,-500.0,0.00015498,2]
[334090648,1722759039585,-500.0,0.00015498,2]
[334090650,1722759039595,-500.0,0.00015498,2]
[334090652,1722759039604,-785.41,0.00015498,2]
[334090654,1722759039614,-500.0,0.00015498,2]
[334090656,1722759039624,-500.0,0.00015498,2]
[334090658,1722759039633,-500.0,0.00015498,2]
[334090660,1722759039643,-500.0,0.00015498,2]
[334090662,1722759039653,-500.0,0.00015498,2]
[334090664,1722759039663,-500.0,0.00015498,2]
[334090666,1722759039672,-573.98,0.00015498,2]
[334090668,1722759039682,-500.0,0.00015498,2]
[334090670,1722759039691,-500.0,0.00015498,2]
[334090672,1722759039701,-367.88690048,0.00015498,2]
[334090674,1722759039711,-500.0,0.00015498,2]
[334090676,1722759039720,-1519.33,0.00015498,2]
[334090678,1722759039730,-1164.35,0.00015498,2]
[334090680,1722759039739,-664.26,0.00015498,2]
[334090682,1722759039749,-526.08728246,0.00015498,2]
[334090684,1722759039759,-500.0,0.00015498,2]
[334090686,1722759039768,-500.0,0.00015498,2]
[334090688,1722759039778,-500.0,0.00015498,2]
[334090690,1722759039787,-500.0,0.00015498,2]
[334090692,1722759039797,-500.0,0.00015498,2]
[334090694,1722759039806,-500.0,0.00015498,2]
[334090696,1722759039815,-500.0,0.00015498,2]
[334090698,1722759039825,-500.0,0.00015498,2]
[334090700,1722759039835,-500.0,0.00015499,2]
[334090702,1722759039845,-500.0,0.00015499,2]
[334090704,1722759039854,-232.79277568,0.00015499,2]
[334090706,1722759039863,-509.02100621,0.00015499,2]
[334090708,1722759039873,-504.05901394,0.00015499,2]
[334090710,1722759039882,-500.0,0.00015499,2]
[334090712,1722759039892,-587.55112756,0.00015499,2]
[334090714,1722759039902,-508.32190725,0.00015499,2]
[334090716,1722759039917,-500.0,0.00015499,2]
[334090718,1722759039926,-500.0,0.00015499,2]
[334090720,1722759039935,-500.0,0.00015499,2]
[334090722,1722759039945,-500.0,0.00015499,2]
[334090724,1722759039954,-500.0,0.00015499,2]
[334090726,1722759039963,-513.78583575,0.00015499,2]
[334090728,1722759039973,-500.0,0.00015499,2]
[334090730,1722759039982,-500.0,0.00015499,2]
[334090732,1722759039993,-500.0,0.00015499,2]
[334090734,1722759040003,-500.0,0.00015499,2]
[334090736,1722759040013,-506.84641108,0.00015499,2]
[334090738,1722759040022,-508.89401469,0.00015499,2]
[334090740,1722759040033,-510.7673192,0.00015499,2]
[334090742,1722759040043,-500.0,0.00015499,2]
[334090744,1722759040052,-500.0,0.00015499,2]
[334090746,1722759040061,-509.18554936,0.00015499,2]
[334090748,1722759040071,-508.72622523,0.00015499,2]
[334090750,1722759040080,-487.03090995,0.00015499,2]
[334090752,1722759040090,-500.0,0.00015499,2]
[334090754,1722759040099,-510.18011119,0.00015499,2]
[334090757,1722759040110,-500.0,0.00015499,2]
[334090759,1722759040120,-500.0,0.00015499,2]
[334090761,1722759040131,-511.66394604,0.00015499,2]
[334090763,1722759040141,-508.23183099,0.00015499,2]
[334090766,1722759040150,-507.60116534,0.00015499,2]
[334090769,1722759040161,-500.0,0.00015499,2]
[334090772,1722759040170,-500.0,0.00015499,2]
[334090775,1722759040181,-500.0,0.00015499,2]
[334090778,1722759040191,-500.0,0.00015499,2]
[334090782,1722759040200,-500.0,0.00015499,2]
[334090784,1722759040210,-500.0,0.00015499,2]
[334090786,1722759040221,-500.0,0.00015499,2]
[334090788,1722759040230,-500.0,0.00015499,2]
[334090790,1722759040240,-500.0,0.00015499,2]
[334090792,1722759040250,-507.32879132,0.00015499,2]
[334090794,1722759040259,-500.0,0.00015499,2]
[334090796,1722759040268,-308.97168909,0.00015499,2]
[334090798,1722759040278,-238.8963325,0.00015499,2]
[334090800,1722759040287,-500.0,0.00015499,2]
[334090812,1722759040412,-252.84267002,0.00015499,2]
[334090814,1722759040422,-586.03974087,0.00015499,2]
[334090816,1722759040432,-500.0,0.00015499,2]
[334090818,1722759040442,-500.0,0.00015499,2]
[334090820,1722759040453,-371.23,0.00015499,2]
[334090822,1722759040463,-500.0,0.00015499,2]
[334090824,1722759040473,-500.0,0.00015499,2]
[334090826,1722759040484,-500.0,0.00015499,2]
[334090828,1722759040493,-500.0,0.00015499,2]
[334090830,1722759040503,-522.39597005,0.00015499,2]
[334090832,1722759040512,-500.0,0.00015499,2]
[334090834,1722759040522,-500.0,0.00015499,2]
[334090836,1722759040532,-500.0,0.00015499,2]
[334090838,1722759040542,-500.0,0.00015499,2]
[334090840,1722759040552,-500.0,0.00015499,2]
[334090843,1722759040561,-542.48318813,0.00015499,2]
[334090845,1722759040571,-500.0,0.00015499,2]
[334090847,1722759040580,-500.0,0.00015499,2]
[334090849,1722759040590,-504.10445539,0.00015499,2]
[334090851,1722759040599,-500.0,0.00015499,2]
[334090853,1722759040609,-500.0,0.00015499,2]
[334090855,1722759040618,-500.0,0.00015499,2]
[334090857,1722759040628,-503.2784474,0.00015499,2]
[334090859,1722759040637,-500.0,0.00015499,2]
[334090861,1722759040646,-495.66623935,0.00015499,2]
[334090863,1722759040655,-504.38876767,0.00015499,2]
[334090865,1722759040664,-500.0,0.00015499,2]
[334090867,1722759040674,-500.0,0.00015499,2]
[334090869,1722759040683,-500.0,0.00015499,2]
[334090871,1722759040692,-500.0,0.00015499,2]
[334090873,1722759040701,-500.0,0.00015499,2]
[334090875,1722759040711,-500.0,0.00015499,2]
[334090877,1722759040720,-500.0,0.00015499,2]
[334090878,1722759040729,-500.0,0.00015499,2]
[334090881,1722759040739,-500.0,0.00015499,2]
[334090883,1722759040748,-500.0,0.00015499,2]
[334090884,1722759040757,-500.0,0.00015499,2]
[334090886,1722759040766,-500.0,0.00015499,2]
[334090889,1722759040776,-500.0,0.00015499,2]
[334090891,1722759040786,-500.0,0.00015499,2]
[334090893,1722759040796,-500.0,0.00015499,2]
[334090895,1722759040806,-312.41134533,0.00015499,2]
[334090897,1722759040815,-507.56062931,0.00015499,2]
[334090899,1722759040825,-262.13385108,0.00015499,2]
[334090901,1722759040834,-501.39095827,0.00015499,2]
[334090903,1722759040844,-500.0,0.00015499,2]
[334090905,1722759040854,-500.0,0.00015499,2]
[334090907,1722759040863,-500.0,0.00015499,2]
[334090909,1722759040873,-500.0,0.00015499,2]
[334090911,1722759040884,-500.0,0.00015499,2]
[334090913,1722759040895,-668.44,0.00015499,2]
[334090915,1722759040905,-500.0,0.00015499,2]
[334090917,1722759040914,-500.0,0.00015499,2]
[334090919,1722759040927,-523.60019561,0.00015499,2]
[334090921,1722759040936,-506.02981527,0.00015499,2]
[334090923,1722759040946,-500.0,0.00015499,2]
[334090925,1722759040957,-500.0,0.00015499,2]
[334090927,1722759040967,-500.0,0.00015499,2]
[334090929,1722759040977,-500.0,0.00015499,2]
[334090931,1722759040986,-500.0,0.00015499,2]
[334090933,1722759040997,-500.0,0.00015499,2]
[334090935,1722759041006,-500.0,0.00015499,2]
[334090937,1722759041016,-500.0,0.00015499,2]
[334090939,1722759041026,-500.0,0.00015499,2]
[334090941,1722759041035,-508.47,0.00015499,2]
[334090943,1722759041045,-500.0,0.00015499,2]
[334090945,1722759041054,-500.0,0.00015499,2]
[334090948,1722759041063,-500.0,0.00015499,2]
[334090950,1722759041072,-500.0,0.00015499,2]
[334090952,1722759041082,-500.0,0.00015499,2]
[334090954,1722759041091,-500.0,0.00015499,2]
[334090956,1722759041101,-500.0,0.00015499,2]
[334090958,1722759041110,-500.0,0.00015499,2]
[334090960,1722759041120,-500.0,0.00015499,2]
[334090962,1722759041129,-644.98,0.00015499,2]
[334090964,1722759041139,-500.0,0.00015499,2]
[334090966,1722759041150,-500.0,0.00015499,2]
[334090968,1722759041160,-500.0,0.00015499,2]
[334090970,1722759041170,-500.0,0.00015499,2]
[334090972,1722759041180,-500.0,0.00015499,2]
[334090974,1722759041190,-500.0,0.00015499,2]
[334090976,1722759041200,-500.0,0.00015499,2]
[334090978,1722759041209,-500.0,0.00015499,2]
[334090980,1722759041218,-542.35716944,0.00015499,2]
[334090982,1722759041228,-500.0,0.00015499,2]
[334090984,1722759041237,-500.0,0.00015499,2]
[334090986,1722759041247,-500.0,0.00015499,2]
[334090988,1722759041256,-500.0,0.00015499,2]
[334090990,1722759041266,-4085.55963669,0.000155,2]
[334090992,1722759041275,-11214.8936997,0.00015522,2]
[334090994,1722759041286,-378.7,0.00015547,2]
[334090996,1722759041298,-300.0,0.00015562,2]
[334090998,1722759041309,-500.0,0.00015598,2]
[334091000,1722759041319,-422.1,0.00015598,2]
[334091003,1722759041329,-500.0,0.00015598,2]
[334091005,1722759041340,-1274.85,0.00015598,2]
[334091007,1722759041350,-500.0,0.00015598,2]
[334091009,1722759041359,-500.0,0.00015598,2]
[334091011,1722759041370,-500.0,0.00015599,2]
[334091013,1722759041380,-503.40065371,0.00015599,2]
[334091015,1722759041389,-502.23018756,0.00015599,2]
[334091017,1722759041399,-500.0,0.00015599,2]
[334091019,1722759041408,-375.49306859,0.00015599,2]
[334091021,1722759041418,-10076.87182088,0.00015609,5]
[334091023,1722759041428,-88041.00376674,0.00015609,2]
[334091025,1722759041438,-213.34688373,0.00015677,2]
[334091027,1722759041447,-500.0,0.00015677,2]
[334091029,1722759041457,-226.91769045,0.00015677,2]
[334091031,1722759041467,-500.0,0.00015677,2]
[334091033,1722759041476,-500.0,0.00015677,2]
[334091035,1722759041485,-500.0,0.00015677,2]
[334091037,1722759041494,-529.7912231,0.00015677,2]
[334091039,1722759041503,-500.0,0.00015677,2]
[334091041,1722759041513,-500.0,0.00015677,2]
[334091043,1722759041523,-500.0,0.00015677,2]
[334091045,1722759041533,-500.0,0.00015677,2]
[334091047,1722759041542,-197.2210673,0.00015677,2]
[334091049,1722759041551,-500.0,0.00015677,2]
[334091051,1722759041561,-500.0,0.00015677,2]
[334091053,1722759041573,-500.0,0.00015677,2]
[334091055,1722759041583,-500.0,0.00015677,2]
[334091057,1722759041593,-500.0,0.00015677,2]
[334091059,1722759041605,-11214.8936997,0.00015678,2]
[334091062,1722759041615,-500.0,0.00015682,2]
[334091064,1722759041626,-500.0,0.00015682,2]
[334091066,1722759041635,-500.0,0.00015682,2]
[334091068,1722759041644,-214.29628257,0.00015682,2]
[334091070,1722759041654,-500.0,0.00015682,2]
[334091072,1722759041665,-500.0,0.00015682,2]
[334091074,1722759041674,-500.0,0.00015682,2]
[334091076,1722759041684,-500.0,0.00015682,2]
[334091078,1722759041693,-500.0,0.00015682,2]
[334091080,1722759041703,-500.0,0.00015682,2]
[334091082,1722759041713,-500.0,0.00015682,2]
[334091084,1722759041722,-1232.28,0.00015682,2]
[334091086,1722759041732,-500.0,0.00015682,2]
[334091088,1722759041742,-151.0,0.00015682,2]
[334091090,1722759041753,-151.0,0.00015682,2]
[334091092,1722759041762,-151.0,0.00015682,2]
[334091094,1722759041771,-151.0,0.00015682,2]
[334091096,1722759041782,-16300.1503931,0.00015688,2]
[334091120,1722759041999,-500.0,0.00015498,2]
[334091122,1722759042010,-449.72840881,0.00015499,2]
[334091124,1722759042021,-500.0,0.00015499,2]
[334091126,1722759042031,-23108.9943215,0.00015688,2]
[334091129,1722759042042,-151.0,0.00015688,2]
[334091131,1722759042052,-151.0,0.00015688,2]
[334091133,1722759042062,-151.0,0.00015688,2]
[334091135,1722759042071,-152.428404,0.00015688,2]
[334091137,1722759042083,-151.0,0.00015688,2]
[334091139,1722759042094,-151.0,0.00015688,2]
[334091141,1722759042104,-151.0,0.00015688,2]
[334091143,1722759042114,-151.0,0.00015688,2]
[334091145,1722759042124,-151.0,0.00015688,2]
[334091148,1722759042134,-151.0,0.00015688,2]
[334091150,1722759042144,-151.0,0.00015688,2]
[334091152,1722759042153,-176.02283,0.00015688,2]
[334091153,1722759042164,-151.0,0.00015688,2]
[334091155,1722759042174,-151.0,0.00015688,2]
[334091158,1722759042184,-151.0,0.00015688,2]
[334091160,1722759042195,-151.0,0.00015688,2]
[334091162,1722759042205,-151.0,0.00015688,2]
[334091164,1722759042214,-151.0,0.00015688,2]
[334091166,1722759042224,-151.0,0.00015688,2]
[334091168,1722759042234,-151.0,0.00015688,2]
[334091170,1722759042243,-151.0,0.00015688,2]
[334091172,1722759042254,-151.0,0.00015688,2]
[334091174,1722759042263,-500.0,0.00015697,2]
[334091176,1722759042273,-644.98,0.00015697,2]
[334091178,1722759042282,-33644.6810991,0.00015698,2]
[334091180,1722759042292,-2220.17172648,0.00015698,3]
[334091182,1722759042301,-500.0,0.00015698,2]
[334091184,1722759042310,-644.98,0.00015698,2]
[334091186,1722759042319,-6826.75695565,0.00015699,2]
[334091353,1722759043779,-500.0,0.00015498,2]
[334091355,1722759043789,-214.62168801,0.00015498,2]
[334091357,1722759043799,-3558.95499092,0.00015699,2]
[334091359,1722759043811,-5146.93228974,0.00015699,2]
[334091828,1722759106783,170.93778722,0.00012119,2]
[334091832,1722760030151,-561.31,0.00010959,2]
[334091833,1722760030173,-426.32864889,0.00012119,2]
[334091834,1722760036091,-849.92478934,0.00012119,2]
[334091835,1722760036114,-457.44499977,0.00012119,2]
[334091836,1722760042109,-395.26958502,0.00012119,2]
[334091837,1722760042131,-1262.406341,0.00013489,2]
[334091838,1722760042153,-187.500001,0.000136,2]
[334091839,1722760042175,-300.0,0.00013698,2]
[334091840,1722760042197,-130.55115175,0.00013699,2]
[334091852,1722760150093,-395.54466025,0.000123,2]
[334091853,1722760150113,-469.36489259,0.000125,2]
[334091854,1722760174187,-1727.36632132,0.00013,2]
[334091855,1722760174213,-436.97900025,0.00013699,2]
[334091856,1722760174237,-3000.0,0.00013699,2]
[334091857,1722760174258,-439.72975104,0.000138,2]
[334091949,1722760237975,-28813.82069422,0.000138,2]
[334091950,1722760237985,-283.765076,0.00014188,2]
[334091951,1722760237995,-637.706216,0.00014247,2]
[334091952,1722760238005,-3000.0,0.00014355,2]
[334091953,1722760238015,-492.40339763,0.00015,2]
[334091954,1722760238026,-367.88690048,0.00015382,2]
[334091955,1722760238037,-2749.95348439,0.00015398,2]
[334091956,1722760238047,-449.72840881,0.00015497,2]
[334091957,1722760238058,-500.0,0.00015497,2]
[334091958,1722760238069,-500.0,0.00015497,2]
[334091959,1722760238079,-500.0,0.00015497,2]
[334091960,1722760238088,-500.0,0.00015497,2]
[334091961,1722760238098,-500.0,0.00015497,2]
[334091962,1722760238107,-500.0,0.00015497,2]
[334091963,1722760238116,-500.0,0.00015497,2]
[334091964,1722760238127,-500.0,0.00015497,2]
[334091965,1722760238138,-500.0,0.00015497,2]
[334091966,1722760238147,-500.0,0.00015497,2]